[Event "1000GM Winter GM Norm-2 2024"]
[Site "Sunnyvale/"]
[Date "2024.01.03"]
[Round "1.1"]
[White "Wang, Isaac"]
[Black "Delgado Ramirez, Neuris"]
[Result "1-0"]
[ECO "D37"]
[WhiteElo "2316"]
[BlackElo "2517"]
[Annotator "TA"]
[PlyCount "47"]
[EventDate "2023.12.14"]
[EventType "schev"]
[EventCountry "USA"]
[SourceTitle "playchess.com"]
[Source "ChessBase"]
[SourceQuality "1"]
[TimeControl "5400+30"]

{[%evp 9,47,18,27,26,26,24,21,25,56,60,67,64,72,65,53,60,62,69,60,65,58,74,83,91,83,73,83,82,139,154,140,146,146,159,514,460,442,431,1546,1177]} 1. d4 {[%emt 0:00:17]} Nf6 {[%emt 0:01:03]} 2. c4 {[%emt 0:00:08]} e6 {[%emt 0:00:14]} 3. Nf3 {[%emt 0:00:07]} d5 {[%emt 0:00:19]} 4. Nc3 {[%emt 0:00:14]} a6 {[%emt 0:02:12]} 5. cxd5 {[%emt 0:01:17]} exd5 {[%emt 0:00:05]} 6. Bg5 {[%emt 0:00:18] D37: Queen's Gambit Declined: 5 Bf4.} Be6 {[%emt 0:00:59]} 7. Bxf6 {[%emt 0:00:25]} Qxf6 {[%emt 0:02:01]} 8. Qb3 {[%emt 0:00:09][%csl LRb7,LRd5] The position is equal.} b5 {[%emt 0:00:31]} 9. a4 $1 {[%emt 0:00:33]} (9. Nxd5 $2 {perishes.} Qd8 10. Nxc7+ (10. e4 $2 c6 $19) 10... Qxc7 $19) 9... b4 {[%emt 0:00:36]} 10. Nxd5 {[%emt 0:00:18]} Qd8 {[%emt 0:00:11]} 11. e4 {[%emt 1:32:14]} c6 {[%emt 0:08:39] [#]} 12. Qe3 $1 {[%emt 0:00:00]} cxd5 {[%emt 0:01:28]} 13. exd5 {[%emt 0:00:00]} Qxd5 {[%emt 0:01:01]} 14. Rc1 $1 {[%emt 0:00:00]} Be7 {[%emt 0:08:05] ...Qd8 would be deadly.} 15. Bd3 $1 {[%emt 0:00:00][%mdl 1024] White has compensation.} Qb7 {[%emt 0:11:34] And now ...Nd7 would win.} 16. Be4 $1 {[%emt 0:00:00]} Qa7 {[%emt 0:00:03][%cal Oe8g8]} 17. Qf4 $1 {[%emt 0:00:00] Black must now prevent d5.} Nd7 {[%emt 0:00:45] [#] Threatens to win with ...Qb8.} 18. d5 $1 {[%emt 0:00:00] White has more active pieces. The black rooks are badly placed.} ({Not} 18. Rc7 Qb8 19. Bxa8 Bd8 $19) 18... g5 {[%emt 0:08:49]} 19. Nxg5 $16 {[%emt 0:00:00]} Bxg5 {[%emt 0:00:12]} 20. Qxg5 {[%emt 0:00:00]} Qd4 {[%emt 0:00:06] [#]} 21. O-O $1 {[%emt 0:00:00] [#]} f6 $146 {[%emt 0:29:19]} (21... Qxe4 $16 {is a better chance.} 22. dxe6 fxe6) ({Predecessor:} 21... Qxe4 22. dxe6 fxe6 23. Rfe1 Qg6 24. Qd5 Ke7 25. Rc6 Rae8 26. Rcxe6+ Kd8 27. Qa8+ Kc7 28. Rc1+ {1-0 Sargsyan,S (2580)-Gholami,A (2554) Wch U18 Mumbai 2019 (9)}) 22. Qf4 {[%emt 0:00:00] White is clearly winning.} Bf7 {[%emt 0:00:25]} (22... Bxd5 $2 23. Bg6+ hxg6 24. Qxd4) 23. Rfe1 {[%emt 0:00:00] Hoping for Bf5+.} Qxb2 {[%emt 0:05:02]} (23... Kf8 $142 24. Qd6+ Kg7) 24. Bxh7+ {[%emt 0:00:00] Weighted Error Value: White=0.05 (flawless) /Black=0.43} 1-0

[Event "1000GM Winter GM Norm-2 2024"]
[Site "Sunnyvale/"]
[Date "2024.01.03"]
[Round "1.2"]
[White "Yang, Nathan Yi-Hsin"]
[Black "Xu, Yi"]
[Result "1/2-1/2"]
[ECO "C92"]
[WhiteElo "1477"]
[BlackElo "2511"]
[Annotator "TA"]
[PlyCount "61"]
[EventDate "2023.12.14"]
[EventType "schev"]
[EventCountry "USA"]
[SourceTitle "playchess.com"]
[Source "ChessBase"]
[SourceQuality "1"]
[TimeControl "5400+30"]

{[%evp 32,61,0,0,0,0,0,0,0,-19,0,0,0,0,0,-23,0,0,0,-7,4,5,0,0,0,0,0,-10,-10,-11,-11,-35]} 1. e4 {[%emt 0:17:09]} e5 {[%emt 0:14:48]} 2. Nf3 {[%emt 0:00:02]} Nc6 {[%emt 0:00:10]} 3. Bb5 {[%emt 1:14:49]} a6 {[%emt 0:00:08]} 4. Ba4 {[%emt 0:00:00]} Nf6 {[%emt 0:00:09]} 5. O-O {[%emt 0:00:00]} Be7 {[%emt 0:00:10]} 6. Re1 {[%emt 0:00:00]} b5 {[%emt 0:00:08]} 7. Bb3 {[%emt 0:00:00]} O-O {[%emt 0:00:10]} 8. c3 {[%emt 0:00:00]} d6 {[%emt 0:00:09]} 9. h3 {[%emt 0:00:00]} Bb7 {[%emt 0:01:09]} 10. d4 {[%emt 0:00:00]} Re8 {[%emt 0:00:37]} 11. Ng5 {[%emt 0:00:00]} Rf8 {[%emt 0:00:08]} 12. Nf3 {[%emt 0:00:00]} Re8 {[%emt 0:00:10]} 13. Nbd2 {[%emt 0:00:00]} Bf8 {[%emt 0:01:11]} 14. d5 {[%emt 0:00:00]} Nb8 {[%emt 0:02:54][%cal Bc6b8,Bb8d7,Bd7c5][%mdl 32]} 15. Nf1 {[%emt 0:00:00]} Nbd7 {[%emt 0:00:17]} 16. N3h2 {[%emt 0:00:00]} Nc5 {[%emt 0:04:23]} 17. Bc2 {[%emt 0:00:00]} c6 {[%emt 0:00:10][%cal Rc6d5]} 18. b4 {[%emt 0:00:00] [#] Threatens to win with dxc6.} Ncd7 {[%emt 0:00:17][%cal Rc6d5]} 19. dxc6 {[%emt 0:00:00]} Bxc6 {[%emt 0:00:03]} 20. Bg5 {[%emt 0:00:00]} Qc7 {[%emt 0:04:13]} 21. Bxf6 {[%emt 0:00:00]} Nxf6 {[%emt 0:00:08]} 22. Ng4 {[%emt 0:00:00]} Nxg4 {[%emt 0:01:41]} 23. hxg4 {[%emt 0:00:00]} a5 {[%emt 0:03:07]} 24. Ne3 {[%emt 0:00:00] The position is equal.} Rec8 {[%emt 0:04:51]} 25. Bb3 {[%emt 0:00:00]} axb4 {[%emt 0:03:26]} 26. cxb4 {[%emt 0:00:00]} Bxe4 {[%emt 0:00:37]} 27. Nd5 {[%emt 0:00:00]} Bxd5 {[%emt 0:00:14]} 28. Bxd5 {[%emt 0:00:00]} Ra3 {[%emt 0:02:08]} 29. Rc1 {[%emt 0:00:00]} Rc3 {[%emt 0:00:18]} 30. Rxc3 {[%emt 0:00:00]} Qxc3 {[%emt 0:00:04]} 31. Re3 {[%emt 0:00:00] Not much happened in this game.   Weighted Error Value: White=0.03 (flawless) /Black=0.05 (flawless)} 1/2-1/2

[Event "1000GM Winter GM Norm-2 2024"]
[Site "Sunnyvale/"]
[Date "2024.01.03"]
[Round "1.3"]
[White "Sheng, Joshua"]
[Black "Nathan, Nitish"]
[Result "1-0"]
[ECO "B32"]
[WhiteElo "2461"]
[BlackElo "2190"]
[Annotator "TA"]
[PlyCount "61"]
[EventDate "2023.12.14"]
[EventType "schev"]
[EventCountry "USA"]
[SourceTitle "playchess.com"]
[Source "ChessBase"]
[SourceQuality "1"]
[TimeControl "5400+30"]

{[%evp 11,61,38,33,31,32,26,28,29,32,32,28,22,26,33,35,22,29,15,27,18,31,44,89,99,111,110,110,112,167,169,155,122,119,126,94,17,520,516,494,512,582,607,611,584,592,564,750,754,736,730,715,703]} 1. e4 {[%emt 0:00:01]} c5 {[%emt 0:00:09]} 2. Nf3 {[%emt 0:00:03][%cal Bg1f3,Bf3d4,Bd4b5,Bb5c3,Bc3d5][%mdl 32]} Nc6 {[%emt 0:00:05]} 3. d4 {[%emt 0:00:19]} cxd4 {[%emt 0:00:28]} 4. Nxd4 {[%emt 0:00:02]} e5 {[%emt 0:00:31]} 5. Nb5 {[%emt 0:00:29]} d6 {[%emt 0:00:23]} 6. c4 {[%emt 0:00:02]} Be7 {[%emt 0:00:35] 6...g6 deserves study.} 7. N5c3 {[%emt 0:00:39] B32: Sicilian: Löwenthal and Kalashnikov Variations.} Nf6 {[%emt 0:00:24][%cal Bg8f6,Bf6d7,Bd7c5,Bc5e6][%mdl 32]} 8. Bd3 {[%emt 0:00:03]} O-O {[%emt 0:00:56]} 9. O-O {[%emt 0:00:02] White has an edge.} Nd7 {[%emt 0:01:47]} 10. Nd5 {[%emt 0:00:19]} Bg5 {[%emt 0:05:34]} 11. Nbc3 {[%emt 0:00:19]} Bxc1 {[%emt 0:04:39]} 12. Rxc1 {[%emt 0:00:03]} Nc5 {[%emt 0:01:54]} 13. Bb1 {[%emt 0:02:15]} Ne6 {[%emt 0:03:41]} 14. b4 {[%emt 0:05:28]} b6 {[%emt 0:03:37] [#]} 15. g3 $146 {[%emt 0:03:58]} ({Predecessor:} 15. Qd2 Bb7 16. Rcd1 Re8 17. g3 a5 18. b5 Ncd4 19. f4 Nc5 20. Qf2 f6 21. Rd2 {½-½ Laine,J (2259)-Sutton,A (2235) SCO L1/2021 email}) 15... Ncd4 {[%emt 0:03:18]} 16. f4 {[%emt 0:01:49][%cal Bf2f4,Bf4f5][%mdl 32]} f6 {[%emt 0:03:30]} 17. f5 {[%emt 0:02:49]} Nc7 {[%emt 0:10:35]} 18. Nxc7 {[%emt 0:03:30]} Qxc7 {[%emt 0:00:12]} 19. Nb5 {[%emt 0:00:02]} Nxb5 {[%emt 0:16:31]} (19... Qb8 $16 {was necessary.}) 20. cxb5 $18 {[%emt 0:00:08]} ({Reject} 20. Qd5+ $6 Qf7 21. Qxf7+ (21. Qxa8 Bb7 $11) (21. cxb5 Qxd5 22. exd5 Bd7 $11) 21... Rxf7 $11) 20... Qb8 {[%emt 0:00:11]} 21. Qd5+ {[%emt 0:06:38] Black is weak on the light squares} Kh8 {[%emt 0:01:11]} 22. Rfd1 $36 {[%emt 0:00:14][%mdl 2048] White is really pushing. White is much more active. The black rooks are badly placed.} Rd8 {[%emt 0:05:03]} 23. g4 {[%emt 0:14:41]} (23. Qf7 $16 Bd7 24. a3) 23... h6 $2 {[%emt 0:05:30][%mdl 8192] This costs Black the game.} (23... a6 $1 $11) 24. Qf7 {[%emt 0:03:59] White is clearly winning.} Bd7 {[%emt 0:01:36] [#]} 25. g5 $1 {[%emt 0:00:06][%cal Bg4g5,Bg5f6][%mdl 544]} Bxb5 {[%emt 0:03:34]} (25... Be8 26. Qf8+) 26. gxf6 {[%emt 0:01:00][%csl Gf6][%cal Rf7g7]} Rg8 {[%emt 0:01:19]} 27. Rc7 {[%emt 0:00:03][%cal Rf6g7]} Be8 {[%emt 0:04:06] [#]} 28. Qe7 {[%emt 0:00:34]} ({Not} 28. fxg7+ Kh7 29. Qe7 Qxc7 30. Qxc7 Rxg7+ $16) 28... Bh5 {[%emt 0:01:55]} 29. Rxd6 {[%emt 0:08:50][%cal Rf6g7]} Qf8 {[%emt 0:00:27]} 30. Kf2 {[%emt 0:00:07]} (30. Rxa7 $2 {is the wrong capture.} Rxa7 31. Qxf8 Rxf8 $19) 30... Qxe7 {[%emt 0:03:32]} 31. Rxe7 {[%emt 0:00:04] Weighted Error Value: White=0.08 (flawless) /Black=0.32} 1-0

[Event "1000GM Winter GM Norm-2 2024"]
[Site "Sunnyvale/"]
[Date "2024.01.03"]
[Round "1.4"]
[White "Nagy, Gabor"]
[Black "Shivakumar, Shawnak"]
[Result "1/2-1/2"]
[ECO "D12"]
[WhiteElo "2450"]
[BlackElo "2307"]
[Annotator "RC"]
[PlyCount "81"]
[EventDate "2023.12.14"]
[EventType "schev"]
[EventCountry "USA"]
[SourceTitle "playchess.com"]
[Source "ChessBase"]
[SourceQuality "1"]
[TimeControl "5400+30"]

1. d4 {[%emt 0:00:04]} d5 {[%emt 0:02:34]} 2. Nf3 {[%emt 0:00:29]} Nf6 {[%emt 0:00:15]} 3. c4 {[%emt 0:00:18]} c6 {[%emt 0:00:13]} 4. e3 {[%emt 0:00:50]} Bf5 {[%emt 0:00:06]} 5. Nc3 {[%emt 0:00:42]} e6 {[%emt 0:00:13]} 6. Nh4 {[%emt 0:00:20]} Bg6 {[%emt 0:00:11]} 7. Bd2 {[%emt 0:01:37]} Nbd7 {[%emt 0:04:26]} 8. Be2 {[%emt 0:01:09]} Be7 {[%emt 0:04:39]} 9. O-O {[%emt 0:02:26]} Qc7 {[%emt 0:04:08]} 10. g3 {[%emt 0:05:34]} Ne4 {[%emt 0:10:37]} 11. Nxg6 {[%emt 0:04:37]} Nxc3 {[%emt 0:00:21]} 12. bxc3 {[%emt 0:02:22]} hxg6 {[%emt 0:00:17]} 13. cxd5 {[%emt 0:02:03]} exd5 {[%emt 0:07:37]} 14. c4 {[%emt 0:00:33]} Nf6 {[%emt 0:01:32]} 15. cxd5 {[%emt 0:03:26]} Qd7 {[%emt 0:00:25]} 16. f3 {[%emt 0:01:04]} cxd5 {[%emt 0:06:24]} 17. Rb1 {[%emt 0:01:28]} O-O {[%emt 0:00:32]} 18. Qb3 {[%emt 0:00:23]} Rab8 {[%emt 0:02:35]} 19. Rfc1 {[%emt 0:02:11]} Rfc8 {[%emt 0:02:16]} 20. Kg2 {[%emt 0:05:38]} Rxc1 {[%emt 0:06:39]} 21. Rxc1 {[%emt 0:00:54]} Rc8 {[%emt 0:02:03]} 22. Rxc8+ {[%emt 0:00:58]} Qxc8 {[%emt 0:00:02]} 23. Bd3 {[%emt 0:00:21]} Qd7 {[%emt 0:07:45]} 24. a4 {[%emt 0:01:01]} g5 {[%emt 0:04:39]} 25. h3 {[%emt 0:03:42]} g6 {[%emt 0:01:13]} 26. Be1 {[%emt 0:02:16]} Bd8 {[%emt 0:31:48]} 27. Qb5 {[%emt 0:07:42]} Qe7 {[%emt 0:00:00]} 28. Bf2 {[%emt 0:01:21]} Bb6 {[%emt 0:00:00]} 29. Bc2 {[%emt 0:01:44]} Qc7 {[%emt 0:00:00]} 30. Qd3 {[%emt 0:01:30]} Qd7 {[%emt 0:00:00]} 31. e4 {[%emt 0:04:47]} g4 {[%emt 0:00:00]} 32. hxg4 {[%emt 0:00:23]} dxe4 {[%emt 0:00:00]} 33. fxe4 {[%emt 0:00:08]} Nxg4 {[%emt 0:00:00]} 34. Bg1 {[%emt 0:00:18]} Nf6 {[%emt 0:00:00]} 35. Bd1 {[%emt 0:05:47]} Qc6 {[%emt 0:00:00]} 36. Bf3 {[%emt 0:00:15]} Qxa4 {[%emt 0:00:00]} 37. e5 {[%emt 0:00:11]} Qa2+ {[%emt 0:00:00]} 38. Bf2 {[%emt 0:03:47]} Nd7 {[%emt 0:00:00]} 39. Bxb7 {[%emt 0:06:56]} Nxe5 {[%emt 0:00:00]} 40. Qe4 {[%emt 0:00:11]} Nc4 {[%emt 0:00:00]} 41. Qf4 {[%emt 0:02:28]} 1/2-1/2

[Event "1000GM Winter GM Norm-2 2024"]
[Site "Sunnyvale/"]
[Date "2024.01.03"]
[Round "1.5"]
[White "Amburgy, Ryan"]
[Black "Lou, Yiping"]
[Result "1/2-1/2"]
[ECO "A30"]
[WhiteElo "2200"]
[BlackElo "2447"]
[Annotator "RC"]
[PlyCount "134"]
[EventDate "2023.12.14"]
[EventType "schev"]
[EventCountry "USA"]
[SourceTitle "playchess.com"]
[Source "ChessBase"]
[SourceQuality "1"]
[TimeControl "5400+30"]

1. Nf3 {[%emt 0:00:03]} Nf6 {[%emt 0:05:20]} 2. c4 {[%emt 0:00:08]} c5 {[%emt 0:00:50]} 3. Nc3 {[%emt 0:00:11]} e6 {[%emt 0:00:51]} 4. g3 {[%emt 0:00:34]} b6 {[%emt 0:00:28]} 5. Bg2 {[%emt 0:00:09]} Bb7 {[%emt 0:00:04]} 6. O-O {[%emt 0:00:10]} Be7 {[%emt 0:00:16]} 7. d4 {[%emt 0:03:09]} cxd4 {[%emt 0:02:48]} 8. Qxd4 {[%emt 0:00:05]} d6 {[%emt 0:00:54]} 9. Rd1 {[%emt 0:01:41]} a6 {[%emt 0:01:50]} 10. Ng5 {[%emt 0:07:07]} Bxg2 {[%emt 0:07:58]} 11. Kxg2 {[%emt 0:00:02]} Nc6 {[%emt 0:00:06]} 12. Qf4 {[%emt 0:03:39]} Qc7 {[%emt 0:03:55]} 13. b3 {[%emt 0:04:47]} O-O {[%emt 0:07:51]} 14. Ba3 {[%emt 0:01:24]} Rad8 {[%emt 0:14:54]} 15. Rac1 {[%emt 0:08:02]} Ne5 {[%emt 0:05:47]} 16. Nge4 {[%emt 0:07:18]} Ne8 {[%emt 0:05:23]} 17. Qe3 {[%emt 0:07:59]} Ng4 {[%emt 0:01:51]} 18. Qf4 {[%emt 0:04:59]} Ne5 {[%emt 0:00:10]} 19. Qe3 {[%emt 0:00:17]} Qb7 {[%emt 0:02:59]} 20. f3 {[%emt 0:00:52]} b5 {[%emt 0:01:45]} 21. cxb5 {[%emt 0:10:32]} axb5 {[%emt 0:00:05]} 22. Bb2 {[%emt 0:00:09]} Nc7 {[%emt 0:01:18]} 23. Nf2 {[%emt 0:10:31]} h6 {[%emt 0:02:02]} 24. Kg1 {[%emt 0:02:08]} b4 {[%emt 0:02:49]} 25. Nce4 {[%emt 0:00:16]} f6 {[%emt 0:06:05]} 26. f4 {[%emt 0:02:08]} Nf7 {[%emt 0:00:52]} 27. Qf3 {[%emt 0:03:18]} d5 {[%emt 0:03:53]} 28. Nc5 {[%emt 0:00:57]} Bxc5 {[%emt 0:00:32]} 29. Rxc5 {[%emt 0:00:01]} Nd6 {[%emt 0:00:10]} 30. Rdc1 {[%emt 0:01:29]} Ncb5 {[%emt 0:01:07]} 31. Qd3 {[%emt 0:00:33]} Rc8 {[%emt 0:01:49]} 32. f5 {[%emt 0:02:24]} Rxc5 {[%emt 0:02:13]} 33. Rxc5 {[%emt 0:00:01]} Qb6 {[%emt 0:00:06]} 34. Qc2 {[%emt 0:00:45]} Nxf5 {[%emt 0:00:36]} 35. Rc6 {[%emt 0:00:03]} Qe3 {[%emt 0:01:12]} 36. Qd3 {[%emt 0:00:17]} Qxd3 {[%emt 0:00:33]} 37. Nxd3 {[%emt 0:00:01]} Nbd4 {[%emt 0:02:18]} 38. Bxd4 {[%emt 0:00:15]} Nxd4 {[%emt 0:00:05]} 39. Rb6 {[%emt 0:00:30]} Nxe2+ {[%emt 0:03:18]} 40. Kf2 {[%emt 0:00:01]} Nc3 {[%emt 0:00:08]} 41. Nxb4 {[%emt 0:00:01]} e5 {[%emt 0:00:23]} 42. a4 {[%emt 0:00:17]} Ra8 {[%emt 0:01:19]} 43. Ke3 {[%emt 0:03:55]} d4+ {[%emt 0:00:19]} 44. Kd3 {[%emt 0:00:00]} Rd8 {[%emt 0:00:28]} 45. Nc6 {[%emt 0:00:10]} Rd7 {[%emt 0:01:22]} 46. Rb8+ {[%emt 0:02:30]} Kh7 {[%emt 0:01:39]} 47. Kd2 {[%emt 0:00:40]} Ne4+ {[%emt 0:01:41]} 48. Kd1 {[%emt 0:00:22]} d3 {[%emt 0:01:07]} 49. Rd8 {[%emt 0:00:32]} Rc7 {[%emt 0:00:16]} 50. Nb4 {[%emt 0:00:05]} Rb7 {[%emt 0:01:43]} 51. Nxd3 {[%emt 0:00:49]} Rxb3 {[%emt 0:00:03]} 52. Kc2 {[%emt 0:01:20]} Ra3 {[%emt 0:00:06]} 53. Nb2 {[%emt 0:00:01]} Kg6 {[%emt 0:01:43]} 54. Rd3 {[%emt 0:02:35]} Ra1 {[%emt 0:00:13]} 55. Rd1 {[%emt 0:00:01]} Ra3 {[%emt 0:01:37]} 56. Rd3 {[%emt 0:00:01]} Ra1 {[%emt 0:00:05]} 57. Rd1 {[%emt 0:00:01]} Rxd1 {[%emt 0:00:04]} 58. Nxd1 {[%emt 0:00:00]} Kf5 {[%emt 0:00:17]} 59. a5 {[%emt 0:00:04]} Nc5 {[%emt 0:00:40]} 60. Kc3 {[%emt 0:00:01]} Ke6 {[%emt 0:00:33]} 61. Kc4 {[%emt 0:00:02]} Kd6 {[%emt 0:00:31]} 62. Kb5 {[%emt 0:00:26]} e4 {[%emt 0:01:22]} 63. Ne3 {[%emt 0:00:18]} g6 {[%emt 0:01:09]} 64. Nc4+ {[%emt 0:01:59]} Kd5 {[%emt 0:00:01]} 65. Ne3+ {[%emt 0:00:02]} Kd6 {[%emt 0:00:20]} 66. Nc4+ {[%emt 0:00:01]} Kd5 {[%emt 0:00:05]} 67. Ne3+ {[%emt 0:00:03]} Kd6 {[%emt 0:00:15]} 1/2-1/2

[Event "1000GM Winter GM Norm-2 2024"]
[Site "Sunnyvale/"]
[Date "2024.01.03"]
[Round "1.6"]
[White "Nagy, Gabor"]
[Black "Shivakumar, Shawnak"]
[Result "*"]
[ECO "D30"]
[WhiteElo "2450"]
[BlackElo "2307"]
[Annotator "RC"]
[PlyCount "20"]
[EventDate "2023.12.14"]
[EventType "schev"]
[EventCountry "USA"]
[SourceTitle "playchess.com"]
[Source "ChessBase"]
[SourceQuality "1"]
[TimeControl "5400+30"]

1. d4 {[%emt 0:00:02]} d5 {[%emt 0:00:30]} 2. c4 {[%emt 0:00:07]} e6 {[%emt 0:00:25]} 3. Nf3 {[%emt 0:00:12]} a6 {[%emt 0:00:13]} 4. Bg5 {[%emt 0:00:17]} Be7 {[%emt 0:00:11]} 5. Bxe7 {[%emt 0:00:07]} Nxe7 {[%emt 0:00:08]} 6. Nbd2 {[%emt 0:00:08]} O-O {[%emt 1:32:03]} 7. g3 {[%emt 0:00:49]} Nd7 {[%emt 0:00:56]} 8. Bg2 {[%emt 0:00:56]} b6 {[%emt 0:01:02]} 9. O-O {[%emt 0:00:47]} Bb7 {[%emt 0:00:04]} 10. Rc1 {[%emt 0:00:34]} c5 {[%emt 0:01:49]} *

[Event "1000GM Winter GM Norm-2 2024"]
[Site "Sunnyvale/"]
[Date "2024.01.03"]
[Round "1.6"]
[White "Rajaram, Rohan"]
[Black "Galyas, Miklos"]
[Result "1/2-1/2"]
[ECO "D30"]
[WhiteElo "2151"]
[BlackElo "2423"]
[Annotator "RC"]
[PlyCount "44"]
[EventDate "2023.12.14"]
[EventType "schev"]
[EventCountry "USA"]
[SourceTitle "playchess.com"]
[Source "ChessBase"]
[SourceQuality "1"]
[TimeControl "5400+30"]

1. d4 {[%emt 0:00:02]} d5 {[%emt 0:00:30]} 2. c4 {[%emt 0:00:07]} e6 {[%emt 0:00:25]} 3. Nf3 {[%emt 0:00:12]} a6 {[%emt 0:00:13]} 4. Bg5 {[%emt 0:00:17]} Be7 {[%emt 0:00:11]} 5. Bxe7 {[%emt 0:00:07]} Nxe7 {[%emt 0:00:08]} 6. Nbd2 {[%emt 0:00:08]} O-O {[%emt 0:00:13]} 7. g3 {[%emt 0:00:49]} Nd7 {[%emt 0:00:56]} 8. Bg2 {[%emt 0:00:56]} b6 {[%emt 0:01:02]} 9. O-O {[%emt 0:00:47]} Bb7 {[%emt 0:00:04]} 10. Rc1 {[%emt 0:00:34]} c5 {[%emt 0:01:49]} 11. e3 {[%emt 0:04:52]} Rc8 {[%emt 0:03:49]} 12. Qe2 {[%emt 0:02:53]} dxc4 {[%emt 0:04:54]} 13. Nxc4 {[%emt 0:02:08]} cxd4 {[%emt 0:01:44]} 14. Nxd4 {[%emt 0:02:27]} Bxg2 {[%emt 0:00:09]} 15. Kxg2 {[%emt 0:00:06]} b5 {[%emt 0:01:01]} 16. Nd2 {[%emt 0:03:09]} Ne5 {[%emt 0:04:42]} 17. N2f3 {[%emt 0:03:46]} N7g6 {[%emt 0:05:52]} 18. a4 {[%emt 0:05:55]} Nxf3 {[%emt 0:02:27]} 19. Nxf3 {[%emt 0:01:34]} bxa4 {[%emt 0:04:13]} 20. Qxa6 {[%emt 0:00:35]} Ra8 {[%emt 0:01:25]} 21. Qe2 {[%emt 0:02:47]} Qb6 {[%emt 0:00:54]} 22. Rc4 {[%emt 0:01:35]} a3 {[%emt 0:01:21]} 1/2-1/2

[Event "1000GM Winter GM Norm-2 2024"]
[Site "Sunnyvale/"]
[Date "2024.01.03"]
[Round "1.7"]
[White "Miezis, Normunds"]
[Black "Liu, Eric"]
[Result "0-1"]
[ECO "A36"]
[WhiteElo "2419"]
[BlackElo "2332"]
[Annotator "RC"]
[PlyCount "92"]
[EventDate "2023.12.14"]
[EventType "schev"]
[EventCountry "USA"]
[SourceTitle "playchess.com"]
[Source "ChessBase"]
[SourceQuality "1"]
[TimeControl "5400+30"]

1. c4 {[%emt 0:00:07]} c5 {[%emt 0:00:10]} 2. Nc3 {[%emt 1:31:23]} Nc6 {[%emt 1:31:20]} 3. g3 {[%emt 0:00:00]} g6 {[%emt 0:00:00]} 4. Bg2 {[%emt 0:00:00]} Bg7 {[%emt 0:00:00]} 5. a3 {[%emt 0:00:00]} e6 {[%emt 0:00:00]} 6. e4 {[%emt 0:00:00]} Nge7 {[%emt 0:00:00]} 7. Nge2 {[%emt 0:00:00]} O-O {[%emt 0:00:00]} 8. O-O {[%emt 0:00:00]} d6 {[%emt 0:00:00]} 9. d3 {[%emt 0:00:00]} Rb8 {[%emt 0:00:00]} 10. Rb1 {[%emt 0:00:00]} Nd4 {[%emt 0:00:00]} 11. b4 {[%emt 0:00:00]} b6 {[%emt 0:00:00]} 12. bxc5 {[%emt 0:00:00]} Nxe2+ {[%emt 0:00:00]} 13. Nxe2 {[%emt 0:00:00]} dxc5 {[%emt 0:00:00]} 14. Bf4 {[%emt 0:00:00]} Rb7 {[%emt 0:00:00]} 15. e5 {[%emt 0:00:00]} Rd7 {[%emt 0:00:00]} 16. Nc3 {[%emt 0:00:00]} Rxd3 {[%emt 0:00:00]} 17. Qc2 {[%emt 0:00:00]} Nf5 {[%emt 0:00:00]} 18. Ne4 {[%emt 0:00:00]} Rxa3 {[%emt 0:00:00]} 19. Rfd1 {[%emt 0:00:00]} Nd4 {[%emt 0:00:00]} 20. Qb2 {[%emt 0:00:00]} Ra4 {[%emt 0:00:00]} 21. Bg5 {[%emt 0:00:00]} Qc7 {[%emt 0:00:00]} 22. f4 {[%emt 0:00:00]} Rxc4 {[%emt 0:00:00]} 23. Rbc1 {[%emt 0:00:00]} Rxc1 {[%emt 0:00:00]} 24. Rxc1 {[%emt 0:00:00]} Qd7 {[%emt 0:00:00]} 25. Ra1 {[%emt 0:00:00]} Nf5 {[%emt 0:00:00]} 26. g4 {[%emt 0:00:00]} Ne3 {[%emt 0:00:00]} 27. Bf3 {[%emt 0:00:00]} Qd3 {[%emt 0:00:00]} 28. Nf2 {[%emt 0:00:00]} Qd7 {[%emt 0:00:00]} 29. Ne4 {[%emt 0:00:00]} Bb7 {[%emt 0:00:00]} 30. Nxc5 {[%emt 0:00:00]} bxc5 {[%emt 0:00:00]} 31. Bxb7 {[%emt 0:00:00]} h6 {[%emt 0:00:00]} 32. Bf6 {[%emt 0:00:00]} Nc4 {[%emt 0:00:00]} 33. Qc3 {[%emt 0:00:00]} Qxb7 {[%emt 0:00:00]} 34. Qxc4 {[%emt 0:02:27]} Qf3 {[%emt 0:16:00]} 35. g5 {[%emt 0:00:29]} Bxf6 {[%emt 0:00:00]} 36. gxf6 {[%emt 0:00:09]} Rd8 {[%emt 0:00:00]} 37. Qf1 {[%emt 0:00:50]} Qg4+ {[%emt 0:01:30]} 38. Kh1 {[%emt 0:00:22]} Rd2 {[%emt 0:00:00]} 39. Re1 {[%emt 0:00:48]} c4 {[%emt 0:00:00]} 40. Re3 {[%emt 0:01:38]} Rd1 {[%emt 0:00:00]} 41. Re1 {[%emt 0:00:05]} Rxe1 {[%emt 0:00:00]} 42. Qxe1 {[%emt 0:00:03]} Qf3+ {[%emt 0:00:35]} 43. Kg1 {[%emt 0:00:03]} c3 {[%emt 0:00:53]} 44. Qc1 {[%emt 0:01:40]} Qd3 {[%emt 0:02:02]} 45. Qa3 {[%emt 0:00:35]} Qb1+ {[%emt 0:00:00]} 46. Kf2 {[%emt 0:00:16]} Qb2+ {[%emt 0:00:00]} 0-1

[Event "1000GM Winter GM Norm-2 2024"]
[Site "Sunnyvale/"]
[Date "2024.01.03"]
[Round "1.8"]
[White "Figueredo Losada, Leonel"]
[Black "Sathish, Pranav"]
[Result "1/2-1/2"]
[ECO "C67"]
[WhiteElo "2381"]
[BlackElo "2357"]
[Annotator "RC"]
[PlyCount "50"]
[EventDate "2023.12.14"]
[EventType "schev"]
[EventCountry "USA"]
[SourceTitle "playchess.com"]
[Source "ChessBase"]
[SourceQuality "1"]
[TimeControl "5400+30"]

1. e4 {[%emt 0:00:02]} e5 {[%emt 0:00:01]} 2. Nf3 {[%emt 0:01:38]} Nc6 {[%emt 0:00:10]} 3. Bb5 {[%emt 0:01:55]} Nf6 {[%emt 0:00:23]} 4. O-O {[%emt 0:02:35]} Nxe4 {[%emt 0:00:02]} 5. Re1 {[%emt 0:00:25]} Nd6 {[%emt 0:00:02]} 6. Nxe5 {[%emt 0:00:22]} Be7 {[%emt 0:00:04]} 7. Bf1 {[%emt 0:00:13]} Nxe5 {[%emt 0:00:04]} 8. Rxe5 {[%emt 0:00:05]} O-O {[%emt 0:00:02]} 9. d4 {[%emt 0:00:35]} Bf6 {[%emt 0:00:08]} 10. Re1 {[%emt 0:00:14]} Re8 {[%emt 0:00:05]} 11. Bf4 {[%emt 0:01:28]} Rxe1 {[%emt 0:02:23]} 12. Qxe1 {[%emt 0:00:10]} Ne8 {[%emt 0:00:02]} 13. Nc3 {[%emt 0:00:15]} Bxd4 {[%emt 0:00:06]} 14. Nd5 {[%emt 0:00:24]} c6 {[%emt 0:00:02]} 15. Ne7+ {[%emt 0:16:00]} Kf8 {[%emt 0:00:13]} 16. Nxc8 {[%emt 0:00:25]} Qf6 {[%emt 0:00:04]} 17. Bg3 {[%emt 0:03:28]} Rxc8 {[%emt 0:05:46]} 18. Qb4+ {[%emt 0:00:31]} d6 {[%emt 0:01:12]} 19. Qxb7 {[%emt 0:00:09]} Rc7 {[%emt 0:01:07]} 20. Qa8 {[%emt 0:14:36]} Bxb2 {[%emt 0:13:02]} 21. Re1 {[%emt 0:07:49]} Be5 {[%emt 0:00:07]} 22. Re3 {[%emt 0:00:05]} Qe6 {[%emt 0:15:19]} 23. Bxe5 {[%emt 0:15:24]} dxe5 {[%emt 0:00:16]} 24. Ra3 {[%emt 0:00:02]} e4 {[%emt 0:09:14]} 25. Rxa7 {[%emt 0:05:30]} Rc8 {[%emt 0:02:17]} 1/2-1/2